[Event "44th Chess Olympiad Women 2022"]
[Site "Chennai"]
[Date "2022.08.09"]
[Round "11.37"]
[White "Abrorova, Sabrina"]
[Black "Ramirez, Maria Eugenia"]
[Result "1/2-1/2"]
[ECO "A62"]
[WhiteElo "1799"]
[BlackElo "2005"]
[Annotator "TA"]
[PlyCount "156"]
[EventDate "2022.07.29"]
[EventType "team-tourn"]
[EventCountry "IND"]
[SourceTitle "playchess.com"]
[Source "ChessBase"]
[SourceQuality "1"]
[WhiteTeam "Tajikistan"]
[BlackTeam "Bolivia"]
[WhiteTeamCountry "TJK"]
[BlackTeamCountry "BOL"]
[TimeControl "40/5400+30:1800+30"]

{[%evp 17,156,20,50,16,65,61,60,66,98,40,47,41,43,22,39,43,41,36,31,22,23,21,27,23,22,-38,23,-37,0,-33,50,44,118,38,39,12,183,22,313,238,267,276,259,0,378,0,372,375,594,568,522,277,270,47,32,24,17,0,-5,-19,0,-74,-69,-68,0,0,0,0,0,-47,-47,-168,-8,-8,-8,-8,-8,-8,-8,-8,-8,-13,-8,-8,-8,-8,-8,-8,-7,-7,-7,-7,0,0,0,-87,0,0,0,0,0,0,0,0,0,0,0,0,8,0,0,0,8,8,8,8,8,8,8,8,8,8,8,8,8,0,0,0,8,0,0,0,8,0,0,0,8,0,0,0,8]} 1. d4 {[%emt 0:00:12]} Nf6 {[%emt 0:00:07]} 2. Nf3 {[%emt 0:00:09]} c5 {[%emt 0:00:20]} 3. d5 {[%emt 0:00:12]} e6 {[%emt 0:00:06]} 4. c4 {[%emt 0:00:12]} exd5 {[%emt 0:00:07]} 5. cxd5 {[%emt 0:00:10]} d6 {[%emt 0:00:05]} 6. Nc3 {[%emt 0:00:45]} g6 {[%emt 0:00:19]} 7. g3 {[%emt 0:00:28]} Bg7 {[%emt 0:00:15]} 8. Bg2 {[%emt 0:00:19]} O-O {[%emt 0:02:07]} 9. O-O {[%emt 0:00:30]} b6 {[%emt 0:03:01]} 10. a4 {[%emt 0:04:17] A62: Modern Benoni: Fianchetto Variation without early ...Nbd7.} Ba6 {[%emt 0:03:09]} (10... Re8 $11) 11. Re1 $14 {[%emt 0:01:00]} Re8 {[%emt 0:02:14]} 12. e4 {[%emt 0:03:09] White is slightly better.} Ng4 {[%emt 0:13:04] [#] Prevents e5.} 13. h3 $146 {[%emt 0:02:18]} (13. Bf4 $16) ({Predecessor:} 13. Bf4 Ne5 14. Nxe5 dxe5 15. Be3 Nd7 16. Qd2 Nf6 17. h3 Qd6 18. b3 Rac8 19. Nb5 Bxb5 20. axb5 {0-1 (42) Gunina,V (2427)-Indjic,A (2607) Chess.com INT 2021}) 13... Ne5 {[%emt 0:02:20]} 14. Nxe5 {[%emt 0:00:12]} Bxe5 {[%emt 0:04:06]} 15. f4 {[%emt 0:03:10]} Bd4+ {[%emt 0:00:05]} 16. Be3 {[%emt 0:00:17]} Bg7 {[%emt 0:04:55]} 17. Bf2 {[%emt 0:05:52]} Bb7 {[%emt 0:00:35]} 18. Qd2 {[%emt 0:05:13]} Na6 {[%emt 0:03:58]} 19. Rad1 {[%emt 0:06:19]} Qd7 {[%emt 0:02:55]} 20. b3 {[%emt 0:14:20]} Nb4 {[%emt 0:00:53]} 21. Na2 {[%emt 0:01:04]} (21. g4 $11) 21... Na6 {[%emt 0:04:10]} (21... a5 $15) 22. a5 {[%emt 0:11:32]} (22. g4 $11) 22... Qb5 {[%emt 0:06:50]} 23. axb6 {[%emt 0:07:34]} Qxb6 {[%emt 0:00:27]} ({Black should try} 23... axb6 $15 24. Bf1 Qd7) 24. Bf1 {[%emt 0:07:59]} Re7 {[%emt 0:08:31] [#]} (24... Qxb3 $2 25. Rb1 Qa3 26. Re3 $18) (24... f5 $14) 25. Bc4 {[%emt 0:09:16]} (25. Nc3 $1 $16) 25... Rae8 {[%emt 0:02:52]} 26. Nc3 {[%emt 0:02:19][%cal Ba2c3,Bc3a4,Ba4c5][%mdl 32]} Bc8 $2 {[%emt 0:13:21]} (26... Bxc3 $11 27. Qxc3 Rxe4) 27. Kh2 $2 {[%emt 0:01:48]} (27. e5 $18) 27... Nb4 $2 {[%emt 0:04:03][%mdl 8192]} (27... Bxc3 $11 28. Qxc3 Rxe4) 28. Na4 {[%emt 0:01:19]} Qb7 {[%emt 0:14:22]} 29. e5 {[%emt 0:00:27]} Qd7 {[%emt 0:00:18]} 30. exd6 $2 {[%emt 0:05:34] Active counter play!} (30. e6 $18 fxe6 31. dxe6) 30... Qxh3+ $11 {[%emt 0:01:22]} 31. Kg1 {[%emt 0:00:02]} Rxe1+ {[%emt 0:00:54][%mdl 8192]} (31... Bd4 $1 $11 {and Black stays safe.} 32. Rxe7 (32. dxe7 $2 {perishes.} Qxg3+ 33. Kh1 Bxf2 $19) 32... Qxg3+ 33. Kh1 (33. Kf1 Bh3+ 34. Ke1 Bxf2+ 35. Qxf2 Nc2+ 36. Ke2 Rxe7+ 37. dxe7 Bg4+ 38. Kf1 Bh3+ 39. Ke2 Bg4+ 40. Kf1 Bh3+ 41. Ke2 $11) 33... Qh3+ 34. Kg1 Qg3+ 35. Kh1 (35. Kf1 Bh3+ 36. Ke1 Bxf2+ 37. Qxf2 Nc2+ 38. Ke2 Rxe7+ 39. dxe7 Bg4+ 40. Kf1 Bh3+ 41. Ke2 Bg4+ 42. Kf1 Bh3+ 43. Ke2 $11) 35... Qh3+ 36. Kg1 Qg3+) 32. Rxe1 $18 {[%emt 0:00:01] Really sharp!} Rd8 {[%emt 0:00:13]} (32... Rxe1+ {was necessary.} 33. Qxe1 Nc2 34. Qe8+ Bf8) 33. Nxc5 {[%emt 0:03:06]} a5 {[%emt 0:00:07]} 34. Bf1 {[%emt 0:01:42]} Qf5 {[%emt 0:00:15]} 35. d7 $2 {[%emt 0:02:11]} (35. Bb5 $18) 35... Bxd7 $14 {[%emt 0:00:14]} 36. Nxd7 {[%emt 0:00:02]} Qxd7 {[%emt 0:00:34]} 37. d6 {[%emt 0:01:58]} Bf8 $1 {[%emt 0:00:47]} 38. Bb6 {[%emt 0:00:29]} Rc8 {[%emt 0:01:34]} 39. Bxa5 {[%emt 0:00:27]} (39. Rd1 $11 {remains equal.}) 39... Qa7+ $17 {[%emt 0:00:15]} 40. Kh1 $1 {[%emt 0:01:54]} Qxa5 {[%emt 0:00:13]} (40... Qa8+ $1 $15 41. Kg1 Qxa5) 41. d7 $1 $11 {[%emt 0:30:10]} Rd8 {[%emt 0:32:21] ...Qh5+ is the strong threat.} 42. Re8 $36 {[%emt 0:00:00][%mdl 2048] White has good play.} Qb6 {[%emt 0:00:00] Inhibits Qd4.} 43. Bg2 {[%emt 0:00:00] Inhibits Qb7.} (43. Bb5 $11 Kg7 {[#]} 44. g4 $1) 43... Na6 $15 {[%emt 0:00:00] White must now prevent ...Qc7.} 44. Kh2 {[%emt 0:00:00]} ({White should play} 44. Qd5 $15 Qc7 45. Qc6 Qxd7 46. Rxd8 Qxd8 47. Qxa6) 44... Qb8 $2 {[%emt 0:00:00]} (44... Qc7 $19 45. Bc6 Nc5) 45. Bc6 $11 {[%emt 0:00:00]} Nc7 {[%emt 0:00:00]} 46. Qd6 {[%emt 0:00:00][%csl Ge8][%cal Rd6f8]} Rxe8 {[%emt 0:00:00]} 47. dxe8=Q {[%emt 0:00:15]} Qxe8 {[%emt 0:00:00]} 48. Qxc7 {[%emt 0:00:00][%mdl 4096] Endgame KQB-KQB} Qe2+ {[%emt 0:00:00]} (48... Qe3 {is interesting.} 49. Qb7 h5 50. Bd5 Be7) 49. Bg2 {[%emt 0:00:27]} h5 {[%emt 0:00:00][%cal Oh5h4]} 50. Qc4 {[%emt 0:01:35]} Qf2 {[%emt 0:00:00] aiming for ...h4.} 51. Kh3 {[%emt 0:02:37]} h4 {[%emt 0:00:10]} 52. gxh4 {[%emt 0:00:42]} Qe3+ {[%emt 0:01:16]} 53. Kg4 {[%emt 0:00:42]} Kg7 {[%emt 0:00:23] ( -> ...f5+)} 54. Bf3 $1 {[%emt 0:00:25]} Be7 {[%emt 0:01:16]} 55. Qe2 {[%emt 0:00:40] Inhibits Qf2.} Qg1+ {[%emt 0:01:01]} 56. Qg2 {[%emt 0:00:26]} (56. Kh3 $11 Bd6 57. Qd2 Qf1+ 58. Kg3 Qg1+ 59. Kh3 Qf1+ 60. Kg3 Qg1+ 61. Kh3) 56... Qc5 {[%emt 0:00:45]} (56... Qe1 $17 {[%csl Ge7][%cal Re1h4]} 57. Qb2+ Kh7) 57. Kh3 {[%emt 0:00:20] The position is equal.} Kh6 {[%emt 0:00:45]} 58. Bd5 {[%emt 0:00:33]} f5 {[%emt 0:03:25]} 59. Bf7 {[%emt 0:00:39][%csl Gf7][%cal Rg2g6]} Qd6 {[%emt 0:00:16]} 60. Qg3 {[%emt 0:00:25]} Kg7 {[%emt 0:00:38]} 61. Be8 {[%emt 0:00:35]} Kh7 {[%emt 0:00:08]} 62. b4 {[%emt 0:00:33][%cal Bb3b4,Bb4b5][%mdl 32]} Bd8 {[%emt 0:00:58]} 63. b5 {[%emt 0:00:17]} Qe6 {[%emt 0:00:13]} 64. Bc6 {[%emt 0:00:29]} Bb6 {[%emt 0:00:42]} 65. Bf3 {[%emt 0:00:33]} Qe8 {[%emt 0:01:34]} 66. h5 {[%emt 0:00:30]} gxh5 {[%emt 0:00:33]} 67. Qg5 {[%emt 0:00:01][%csl LRf5,LRh5]} Qxb5 {[%emt 0:00:49]} 68. Qxh5+ {[%emt 0:00:40]} Kg7 {[%emt 0:00:04]} 69. Qg5+ {[%emt 0:00:09]} Kh7 {[%emt 0:00:35]} 70. Qe7+ {[%emt 0:00:21]} Kg8 {[%emt 0:00:25]} 71. Qe6+ {[%emt 0:00:43]} Kg7 {[%emt 0:00:51]} 72. Qe7+ {[%emt 0:00:06]} Kg8 {[%emt 0:00:15]} 73. Qg5+ {[%emt 0:00:38]} Kh7 {[%emt 0:00:07]} 74. Qe7+ {[%emt 0:00:13]} Kg8 {[%emt 0:00:23]} 75. Qe6+ {[%emt 0:00:05]} Kg7 {[%emt 0:00:39]} 76. Qe7+ {[%emt 0:00:10]} Kg8 {[%emt 0:00:07]} 77. Qe6+ {[%emt 0:00:01]} Kg7 {[%emt 0:00:41]} 78. Qe7+ {[%emt 0:00:07]} Kg8 {[%emt 0:00:16] Blacks defense is rewarded with a draw.  Weighted Error Value: White=0.46/Black=0.47} 1/2-1/2

[Event "44th Chess Olympiad Women 2022"]
[Site "Chennai"]
[Date "2022.08.09"]
[Round "11.37"]
[White "Antonova, Lidiya"]
[Black "Monroy G., Nataly A."]
[Result "0-1"]
[ECO "B78"]
[WhiteElo "1497"]
[BlackElo "1907"]
[Annotator "NA RC"]
[PlyCount "66"]
[EventDate "2022.07.29"]
[EventType "team-tourn"]
[EventCountry "IND"]
[SourceTitle "playchess.com"]
[Source "ChessBase"]
[SourceQuality "1"]
[WhiteTeam "Tajikistan"]
[BlackTeam "Bolivia"]
[WhiteTeamCountry "TJK"]
[BlackTeamCountry "BOL"]
[TimeControl "40/5400+30:1800+30"]

1. e4 {[%emt 0:00:02]} c5 {[%emt 0:00:09]} 2. Nf3 {[%emt 0:00:08]} Nc6 {[%emt 0:00:30]} 3. d4 {[%emt 0:00:30]} cxd4 {[%emt 0:00:45]} 4. Nxd4 {[%emt 0:00:07]} g6 {[%emt 0:00:08]} 5. Be3 {[%emt 0:02:13]} Bg7 {[%emt 0:00:09]} 6. Nc3 {[%emt 0:00:41]} Nf6 {[%emt 0:00:17]} 7. Bc4 {[%emt 0:04:09]} O-O {[%emt 0:00:59]} 8. f3 {[%emt 0:01:10]} d6 {[%emt 0:01:02]} 9. Qd2 {[%emt 0:00:08]} Bd7 {[%emt 0:00:18]} 10. O-O-O {[%emt 0:03:50]} a6 {[%emt 0:03:39]} 11. g4 {[%emt 0:10:34]} b5 {[%emt 0:05:40]} 12. Nxc6 {[%emt 0:04:09]} Bxc6 {[%emt 0:00:09]} 13. Bb3 {[%emt 0:02:19]} a5 {[%emt 0:01:07]} 14. Nd5 {[%emt 0:07:34]} Nd7 {[%emt 0:30:03]} 15. Nf4 {[%emt 0:10:00]} Ne5 {[%emt 0:05:54]} 16. Qg2 {[%emt 0:04:51]} a4 {[%emt 0:00:00]} 17. Bd5 {[%emt 0:00:15]} b4 {[%emt 0:00:00]} 18. Bd4 {[%emt 0:13:48]} Rc8 {[%emt 0:02:53]} 19. Rd2 {[%emt 0:06:22]} b3 {[%emt 0:00:41]} 20. a3 {[%emt 0:00:50]} Bxd5 {[%emt 0:00:55]} 21. exd5 {[%emt 0:01:26]} bxc2 {[%emt 0:02:01]} 22. Bc3 {[%emt 0:03:51]} Nc4 {[%emt 0:00:45]} 23. Rd3 {[%emt 0:07:30]} Ne5 {[%emt 0:02:28]} 24. Rd2 {[%emt 0:02:38]} Nc4 {[%emt 0:04:12]} 25. Rd3 {[%emt 0:00:29]} Nxb2 {[%emt 0:00:55]} 26. Kxb2 {[%emt 0:03:16]} Qb6+ {[%emt 0:01:29]} 27. Kxc2 {[%emt 0:00:15]} Bxc3 {[%emt 0:00:05]} 28. Kd1 {[%emt 0:06:59]} Be5 {[%emt 0:00:32]} 29. Qg1 {[%emt 0:02:51]} Qb1+ {[%emt 0:00:27]} 30. Ke2 {[%emt 0:00:17]} Rc2+ {[%emt 0:00:14]} 31. Ke3 {[%emt 0:00:25]} Qb6+ {[%emt 0:00:07]} 32. Ke4 {[%emt 0:00:56]} Rc4+ {[%emt 0:00:05]} 33. Rd4 {[%emt 0:01:31]} Rxd4+ {[%emt 0:00:16]} 0-1

[Event "44th Chess Olympiad Women 2022"]
[Site "Chennai"]
[Date "2022.08.09"]
[Round "11.38"]
[White "Noshin, Anjum"]
[Black "Badenhorst, Chloe"]
[Result "1-0"]
[ECO "B33"]
[WhiteElo "2027"]
[BlackElo "1703"]
[Annotator "NA RC"]
[PlyCount "95"]
[EventDate "2022.07.29"]
[EventType "team-tourn"]
[EventCountry "IND"]
[SourceTitle "playchess.com"]
[Source "ChessBase"]
[SourceQuality "1"]
[WhiteTeam "Bangladesh"]
[BlackTeam "South Africa"]
[WhiteTeamCountry "BAN"]
[BlackTeamCountry "RSA"]
[TimeControl "40/5400+30:1800+30"]

1. e4 {[%emt 0:00:03]} c5 {[%emt 0:00:02]} 2. Nf3 {[%emt 0:00:06]} Nc6 {[%emt 0:00:03]} 3. d4 {[%emt 0:00:06]} cxd4 {[%emt 0:00:03]} 4. Nxd4 {[%emt 0:00:05]} Nf6 {[%emt 0:00:05]} 5. Nc3 {[%emt 0:00:06]} e5 {[%emt 0:00:03]} 6. Ndb5 {[%emt 0:00:05]} d6 {[%emt 0:00:08]} 7. Nd5 {[%emt 0:00:10]} Nxd5 {[%emt 0:00:18]} 8. exd5 {[%emt 0:00:07]} Nb8 {[%emt 0:00:03]} 9. a4 {[%emt 0:00:07]} Be7 {[%emt 0:01:03]} 10. Be2 {[%emt 0:00:05]} O-O {[%emt 0:00:19]} 11. Bd2 {[%emt 0:00:05]} f5 {[%emt 0:01:52]} 12. a5 {[%emt 0:00:21]} a6 {[%emt 0:01:58]} 13. Na3 {[%emt 0:01:42]} Nd7 {[%emt 0:04:14]} 14. Nc4 {[%emt 0:01:51]} Rb8 {[%emt 0:12:56]} 15. O-O {[%emt 0:04:52]} Qe8 {[%emt 0:07:09]} 16. Bh5 {[%emt 0:05:56]} g6 {[%emt 0:01:58]} 17. Be2 {[%emt 0:00:23]} f4 {[%emt 0:12:55]} 18. Bb4 {[%emt 0:18:10]} Rf6 {[%emt 0:02:26]} 19. Re1 {[%emt 0:10:30]} Nf8 {[%emt 0:12:00]} 20. Bf3 {[%emt 0:00:59]} Bf5 {[%emt 0:05:41]} 21. c3 {[%emt 0:15:59]} Nd7 {[%emt 0:04:31]} 22. Nd2 {[%emt 0:00:58]} Rf8 {[%emt 0:04:31]} 23. Ne4 {[%emt 0:04:41]} Bxe4 {[%emt 0:00:22]} 24. Bxe4 {[%emt 0:00:12]} Nf6 {[%emt 0:00:11]} 25. c4 {[%emt 0:01:41]} Nxe4 {[%emt 0:02:48]} 26. Rxe4 {[%emt 0:00:03]} Qf7 {[%emt 0:01:42]} 27. Qf3 {[%emt 0:11:41]} g5 {[%emt 0:04:02]} 28. g3 {[%emt 0:05:52]} Kh8 {[%emt 0:06:22]} 29. gxf4 {[%emt 0:04:00]} gxf4 {[%emt 0:02:01]} 30. Kh1 {[%emt 0:00:11]} Rg8 {[%emt 0:00:40]} 31. Bc3 {[%emt 0:01:06]} Rg7 {[%emt 0:01:23]} 32. c5 {[%emt 0:04:50]} Rd8 {[%emt 0:05:02]} 33. cxd6 {[%emt 0:00:31]} Bxd6 {[%emt 0:00:47]} 34. Bxe5 {[%emt 0:01:58]} Bxe5 {[%emt 0:00:58]} 35. Rxe5 {[%emt 0:00:04]} Qf6 {[%emt 0:00:21]} 36. Rae1 {[%emt 0:00:06]} Rdg8 {[%emt 0:02:42]} 37. Re8 {[%emt 0:00:29]} Qxb2 {[%emt 0:00:47]} 38. Rxg8+ {[%emt 0:00:32]} Rxg8 {[%emt 0:00:35]} 39. Qxf4 {[%emt 0:00:08]} Qg7 {[%emt 0:01:09]} 40. Qe5 {[%emt 0:00:09]} Qxe5 {[%emt 0:01:25]} 41. Rxe5 {[%emt 0:33:54]} Rd8 {[%emt 0:32:25]} 42. Kg2 {[%emt 0:00:05]} Kg7 {[%emt 0:00:38]} 43. Re7+ {[%emt 0:01:13]} Kg8 {[%emt 0:00:46]} 44. Re5 {[%emt 0:00:09]} Kf7 {[%emt 0:00:00]} 45. Kf3 {[%emt 0:00:00]} Kf6 {[%emt 0:00:00]} 46. Ke4 {[%emt 0:00:00]} Rd7 {[%emt 0:00:00]} 47. Re6+ {[%emt 0:00:00]} Kf7 {[%emt 0:00:00]} 48. f4 {[%emt 0:00:00]} 1-0

[Event "44th Chess Olympiad Women 2022"]
[Site "Chennai"]
[Date "2022.08.09"]
[Round "11.38"]
[White "Khan, Nazrana"]
[Black "Bouah, Denise"]
[Result "1-0"]
[ECO "D17"]
[WhiteElo "1829"]
[BlackElo "1736"]
[Annotator "NA RC COMBH"]
[PlyCount "53"]
[EventDate "2022.07.29"]
[EventType "team-tourn"]
[EventCountry "IND"]
[SourceTitle "playchess.com"]
[Source "ChessBase"]
[SourceQuality "1"]
[WhiteTeam "Bangladesh"]
[BlackTeam "South Africa"]
[WhiteTeamCountry "BAN"]
[BlackTeamCountry "RSA"]
[TimeControl "40/5400+30:1800+30"]

1. d4 {[%emt 0:00:04]} d5 {[%emt 0:00:05]} 2. c4 {[%emt 0:00:08]} c6 {[%emt 0:00:05]} 3. Nf3 {[%emt 0:00:24]} Nf6 {[%emt 0:00:08]} 4. Nc3 {[%emt 0:00:17]} dxc4 {[%emt 0:00:08]} 5. a4 {[%emt 0:00:42]} Bf5 {[%emt 0:00:12]} 6. Ne5 {[%emt 0:00:39]} Na6 {[%emt 0:05:08]} 7. f3 {[%emt 0:06:47]} Nd7 {[%emt 0:01:29]} 8. Nxc4 {[%emt 0:05:11]} e5 {[%emt 0:02:18]} 9. e4 {[%emt 0:10:11]} exd4 {[%emt 0:03:53]} 10. Qxd4 {[%emt 0:07:25]} Nb4 {[%emt 0:07:13]} 11. Qd1 {[%emt 0:09:12]} Be6 {[%emt 0:02:48]} 12. Be3 {[%emt 0:01:48]} Bxc4 {[%emt 0:10:14]} 13. Bxc4 {[%emt 0:00:50]} Ne5 {[%emt 0:00:18]} 14. Be2 {[%emt 0:04:25]} Ned3+ {[%emt 0:06:39]} 15. Bxd3 {[%emt 0:01:12]} Nxd3+ {[%emt 0:00:36]} 16. Ke2 {[%emt 0:03:46]} Nxb2 {[%emt 0:09:22]} 17. Qxd8+ {[%emt 0:01:08]} Rxd8 {[%emt 0:00:57]} 18. Bxa7 {[%emt 0:04:12]} Bb4 {[%emt 0:03:38]} 19. Rhc1 {[%emt 0:08:31]} Ra8 {[%emt 0:10:09]} 20. Bd4 {[%emt 0:03:17]} O-O {[%emt 0:15:25]} 21. Nd5 {[%emt 0:10:44]} cxd5 {[%emt 0:01:45]} 22. Bxb2 {[%emt 0:00:42]} dxe4 {[%emt 0:00:22]} 23. fxe4 {[%emt 0:01:13]} Rfd8 {[%emt 0:01:00]} 24. Rd1 {[%emt 0:03:24]} Rxd1 {[%emt 0:03:07]} 25. Rxd1 {[%emt 0:00:21]} Kf8 {[%emt 0:00:58]} 26. Rd4 {[%emt 0:01:09]} Rxa4 {[%emt 0:01:02]} 27. Rxb4 {[%emt 0:00:31]} 1-0

[Event "44th Chess Olympiad Women 2022"]
[Site "Chennai"]
[Date "2022.08.09"]
[Round "11.38"]
[White "Selkirk, Rebecca"]
[Black "Jannatul, Ferdous"]
[Result "0-1"]
[ECO "B14"]
[WhiteElo "1745"]
[BlackElo "1815"]
[Annotator "NA RC COMBH"]
[PlyCount "62"]
[EventDate "2022.07.29"]
[EventType "team-tourn"]
[EventCountry "IND"]
[SourceTitle "playchess.com"]
[Source "ChessBase"]
[SourceQuality "1"]
[WhiteTeam "South Africa"]
[BlackTeam "Bangladesh"]
[WhiteTeamCountry "RSA"]
[BlackTeamCountry "BAN"]
[TimeControl "40/5400+30:1800+30"]

1. e4 {[%emt 0:00:03]} c6 {[%emt 0:01:11]} 2. d4 {[%emt 0:00:12]} d5 {[%emt 0:00:08]} 3. exd5 {[%emt 0:00:02]} cxd5 {[%emt 0:00:04]} 4. c4 {[%emt 0:00:19]} Nf6 {[%emt 0:00:09]} 5. Nc3 {[%emt 0:00:06]} Nc6 {[%emt 0:00:33]} 6. Bg5 {[%emt 0:00:13]} e6 {[%emt 0:00:21]} 7. c5 {[%emt 0:00:58]} Be7 {[%emt 0:00:09]} 8. Nf3 {[%emt 0:00:43]} O-O {[%emt 0:00:09]} 9. a3 {[%emt 0:00:17]} a5 {[%emt 0:00:09]} 10. Bd3 {[%emt 0:04:11]} b6 {[%emt 0:05:55]} 11. Bb5 {[%emt 0:02:23]} Qc7 {[%emt 0:04:55]} 12. Bxc6 {[%emt 0:00:58]} Qxc6 {[%emt 0:07:07]} 13. Ne5 {[%emt 0:00:08]} Qe8 {[%emt 0:07:15]} 14. c6 {[%emt 0:03:24]} Ne4 {[%emt 0:02:50]} 15. Nxe4 {[%emt 0:08:06]} dxe4 {[%emt 0:00:31]} 16. Bxe7 {[%emt 0:02:26]} Qxe7 {[%emt 0:00:05]} 17. Qc2 {[%emt 0:03:14]} f6 {[%emt 0:04:42]} 18. Nc4 {[%emt 0:02:10]} b5 {[%emt 0:16:49]} 19. Ne3 {[%emt 0:06:05]} f5 {[%emt 0:12:18]} 20. f4 {[%emt 0:14:30]} exf3 {[%emt 0:02:39]} 21. gxf3 {[%emt 0:00:33]} Qh4+ {[%emt 0:00:16]} 22. Ke2 {[%emt 0:01:48]} Qxd4 {[%emt 0:00:24]} 23. Rag1 {[%emt 0:04:08]} b4 {[%emt 0:07:32]} 24. Qd2 {[%emt 0:04:52]} Ba6+ {[%emt 0:01:00]} 25. Ke1 {[%emt 0:00:21]} Qxd2+ {[%emt 0:00:35]} 26. Kxd2 {[%emt 0:00:02]} Rfd8+ {[%emt 0:00:11]} 27. Ke1 {[%emt 0:03:07]} Rac8 {[%emt 0:02:09]} 28. axb4 {[%emt 0:00:52]} axb4 {[%emt 0:00:52]} 29. Nd1 {[%emt 0:02:09]} Rxc6 {[%emt 0:00:55]} 30. Rg2 {[%emt 0:01:09]} Rcd6 {[%emt 0:08:44]} 31. Nf2 {[%emt 0:00:56]} Rd2 {[%emt 0:00:50]} 0-1

[Event "44th Chess Olympiad Women 2022"]
[Site "Chennai"]
[Date "2022.08.09"]
[Round "11.38"]
[White "Van Zyl, Charlize"]
[Black "Sultana, Sharmin Shirin"]
[Result "1/2-1/2"]
[ECO "D10"]
[WhiteElo "1704"]
[BlackElo "1995"]
[Annotator "TA"]
[PlyCount "61"]
[EventDate "2022.07.29"]
[EventType "team-tourn"]
[EventCountry "IND"]
[SourceTitle "playchess.com"]
[Source "ChessBase"]
[SourceQuality "1"]
[WhiteTeam "South Africa"]
[BlackTeam "Bangladesh"]
[WhiteTeamCountry "RSA"]
[BlackTeamCountry "BAN"]
[TimeControl "40/5400+30:1800+30"]

{[%evp 9,61,26,31,23,42,37,39,39,51,57,88,81,85,63,68,60,69,64,70,74,98,72,60,40,127,119,161,159,161,160,186,183,170,196,312,298,405,387,399,355,458,432,393,293,361,322,273,258,258,258,258,261,307,307]} 1. d4 {[%emt 0:00:04]} d5 {[%emt 0:00:12]} 2. Bf4 {[%emt 0:00:09]} Nf6 {[%emt 0:00:22]} 3. e3 {[%emt 0:00:12]} Bf5 {[%emt 0:00:35]} 4. c4 {[%emt 0:00:11][%cal Bc2c4,Bc4c5][%mdl 32]} c6 {[%emt 0:00:11]} 5. Nc3 {[%emt 0:01:53]} e6 {[%emt 0:00:18]} 6. Qb3 {[%emt 0:01:26] D10: Slav Defence: 3 cxd5 (without early Nf3) and 3 Nc3.} Qb6 {[%emt 0:07:38]} 7. c5 {[%emt 0:01:58]} Qxb3 {[%emt 0:00:29]} 8. axb3 {[%emt 0:00:07][%cal Ba2b3,Bb3b4][%mdl 32] White is slightly better.} a6 {[%emt 0:01:55]} 9. b4 {[%emt 0:02:14]} Nh5 {[%emt 0:03:28]} 10. Bc7 {[%emt 0:05:12][%cal Ob4b5] [#]} Be7 $146 {[%emt 0:06:08]} ({Predecessor:} 10... Nd7 11. b5 cxb5 12. Nxb5 Rc8 13. Nd6+ Bxd6 14. Bxd6 Nhf6 15. f3 Nb8 16. b4 Kd7 {1-0 (31) Delchev,A (2585)-Rahnev,A (2138) Plovdiv 2017}) 11. h3 {[%emt 0:07:04] [#] Hoping for g4.} Nf6 {[%emt 0:00:27]} 12. Nf3 {[%emt 0:03:08][%cal Ob4b5]} O-O {[%emt 0:03:04]} 13. b5 {[%emt 0:02:28] White is more active.} cxb5 {[%emt 0:01:41]} 14. Bxb5 {[%emt 0:03:15]} Nbd7 {[%emt 0:09:02]} 15. Be2 {[%emt 0:03:08]} Rfc8 {[%emt 0:10:26]} 16. Bh2 {[%emt 0:01:59]} Bd8 {[%emt 0:01:14] Black is now going downhill.} (16... b6 $1 $14) 17. O-O $16 {[%emt 0:03:57]} Bc7 {[%emt 0:08:20]} 18. Bxc7 {[%emt 0:03:26]} Rxc7 {[%emt 0:00:02]} 19. Nb5 {[%emt 0:00:17]} Rc6 {[%emt 0:00:40]} 20. Nd6 {[%emt 0:06:14]} Rb8 {[%emt 0:01:21]} 21. b4 {[%emt 0:04:52]} b5 {[%emt 0:09:41]} (21... Bg6 {was called for.} 22. b5 axb5 23. Bxb5 Rc7) 22. Ra2 $18 {[%emt 0:07:49]} Rd8 {[%emt 0:08:11]} 23. Rfa1 {[%emt 0:14:56]} Nb8 {[%emt 0:01:00]} 24. Ne5 {[%emt 0:01:57]} Rc7 {[%emt 0:00:41]} 25. g4 {[%emt 0:02:56]} Bg6 {[%emt 0:01:32]} 26. h4 {[%emt 0:03:11] aiming for h5.} h5 {[%emt 0:05:21]} 27. g5 {[%emt 0:01:46]} Ne8 {[%emt 0:02:00] White has a decisive advantage.} 28. Nxg6 {[%emt 0:01:51]} fxg6 {[%emt 0:00:02]} 29. Nxe8 {[%emt 0:00:35]} Rxe8 {[%emt 0:00:01]} 30. Bd3 {[%emt 0:01:27]} Kh7 {[%emt 0:00:22]} 31. f4 {[%emt 0:02:01][%mdl 32768] Weighted Error Value: White=0.11 (very precise) /Black=0.30. An unexpected result.} 1/2-1/2

[Event "44th Chess Olympiad Women 2022"]
[Site "Chennai"]
[Date "2022.08.09"]
[Round "11.39"]
[White "Vargas, Gabriela"]
[Black "Al-Fayyadh, Zainab Asif Abdulah"]
[Result "1-0"]
[ECO "A47"]
[WhiteElo "2140"]
[BlackElo "1749"]
[Annotator "NA RC"]
[PlyCount "67"]
[EventDate "2022.07.29"]
[EventType "team-tourn"]
[EventCountry "IND"]
[SourceTitle "playchess.com"]
[Source "ChessBase"]
[SourceQuality "1"]
[WhiteTeam "Paraguay"]
[BlackTeam "Iraq"]
[WhiteTeamCountry "PAR"]
[BlackTeamCountry "IRQ"]
[TimeControl "40/5400+30:1800+30"]

1. d4 {[%emt 0:00:03]} d5 {[%emt 0:00:04]} 2. Nf3 {[%emt 0:00:28]} Nf6 {[%emt 0:00:08]} 3. Bg5 {[%emt 0:00:19]} e6 {[%emt 0:00:06]} 4. e3 {[%emt 0:00:47]} Be7 {[%emt 0:00:06]} 5. Nbd2 {[%emt 0:00:17]} O-O {[%emt 0:00:11]} 6. Bd3 {[%emt 0:00:30]} b6 {[%emt 0:00:50]} 7. Ne5 {[%emt 0:10:34]} Bb7 {[%emt 0:00:36]} 8. O-O {[%emt 0:12:06]} Nbd7 {[%emt 0:02:05]} 9. f4 {[%emt 0:01:12]} Ne4 {[%emt 0:03:42]} 10. Bxe7 {[%emt 0:01:18]} Qxe7 {[%emt 0:00:08]} 11. Rf3 {[%emt 0:01:52]} Nxd2 {[%emt 0:06:07]} 12. Bxh7+ {[%emt 0:03:40]} Kh8 {[%emt 0:03:10]} 13. Rh3 {[%emt 0:00:08]} Nf6 {[%emt 0:00:59]} 14. Bg6+ {[%emt 0:04:48]} Kg8 {[%emt 0:00:36]} 15. Bxf7+ {[%emt 0:00:35]} Qxf7 {[%emt 0:05:08]} 16. Nxf7 {[%emt 0:00:23]} Kxf7 {[%emt 0:00:07]} 17. Qxd2 {[%emt 0:00:25]} Rac8 {[%emt 0:00:34]} 18. Qe2 {[%emt 0:00:46]} c5 {[%emt 0:00:39]} 19. c3 {[%emt 0:00:20]} Rg8 {[%emt 0:05:52]} 20. Rf1 {[%emt 0:00:41]} Ke7 {[%emt 0:00:36]} 21. f5 {[%emt 0:04:14]} Rc6 {[%emt 0:00:48]} 22. fxe6 {[%emt 0:14:32]} c4 {[%emt 0:01:53]} 23. Rf5 {[%emt 0:00:39]} Rxe6 {[%emt 0:01:04]} 24. Re5 {[%emt 0:00:28]} Bc8 {[%emt 0:00:16]} 25. Rg3 {[%emt 0:06:42]} Ne4 {[%emt 0:01:03]} 26. Rg6 {[%emt 0:00:30]} Rxe5 {[%emt 0:00:31]} 27. dxe5 {[%emt 0:00:03]} Bf5 {[%emt 0:00:21]} 28. Qh5 {[%emt 0:00:17]} Bxg6 {[%emt 0:05:29]} 29. Qxg6 {[%emt 0:00:01]} Rf8 {[%emt 0:03:43]} 30. Qxg7+ {[%emt 0:01:54]} Rf7 {[%emt 0:00:24]} 31. Qg6 {[%emt 0:00:07]} Nd2 {[%emt 0:00:48]} 32. Qd6+ {[%emt 0:00:11]} Ke8 {[%emt 0:00:10]} 33. Qe6+ {[%emt 0:00:45]} Kf8 {[%emt 0:00:14]} 34. h4 {[%emt 0:00:36]} 1-0